bitfinex-derivatives/quotes_ETHF0:USTF0_20250114
["timestamp","ask_amount","ask_price","bid_price","bid_amount"]
[1736886883111,3.98513,3217.9,3216.9,44.0078]
[1736886883314,3.71179383,3217.3,3217.2,0.31099]
[1736886883513,3.40080383,3217.6,3216.9,44.0078]
[1736886883713,0.31099,3217.2,3217.0,0.31101]
[1736886883914,0.311,3217.1,3217.0,0.31101]
[1736886884120,0.311,3217.1,3216.9,44.0078]
[1736886884121,3.08382866,3217.1,3216.9,44.0078]
[1736886884315,3.40080383,3217.2,3217.0,0.31101]
[1736886884517,0.31101,3217.1,3216.9,44.31882]
[1736886884719,0.31101,3217.1,3217.0,0.31101]
[1736886885118,3.29630566,3217.1,3217.0,0.31101]
[1736886885619,0.311,3217.1,3217.0,0.31101]
[1736886885926,0.31101,3217.0,3216.9,44.0078]
[1736886886125,0.31101,3217.0,3216.9,44.31882]
[1736886886326,3.77942027,3217.0,3216.9,44.31882]
[1736886886726,3.77942027,3217.0,3216.9,44.0078]
[1736886887226,3.46841027,3217.0,3216.9,44.31882]
[1736886887719,1.51680994,3229.8,3216.9,51.45931459]
[1736886887720,3.52593549,3217.3,3216.9,51.45931459]
[1736886887924,3.51873,3217.9,3217.2,2.45151459]
[1736886888233,3.7147967,3217.8,3217.6,0.31095]
[1736886888416,3.7147967,3217.8,3217.3,3.2078]
[1736886888621,3.7147967,3217.8,3217.7,0.31095]
[1736886888823,3.7147967,3217.8,3217.7,41.11095]
[1736886889725,3.4038567,3217.8,3217.7,41.11095]
[1736886890223,0.31093,3217.9,3217.8,0.31094]
[1736886890620,3.48421483,3217.9,3217.8,3.51874]
[1736886891021,3.79514483,3217.9,3217.8,3.2078]
[1736886891223,3.79514483,3217.9,3217.8,0.31094]
[1736886891528,0.31096,3217.6,3217.5,0.31096]
[1736886891929,3.83541448,3217.6,3217.5,0.31096]
[1736886892128,3.52445448,3217.6,3217.5,0.31096]
[1736886892428,3.29897519,3217.9,3217.3,2.45151459]
[1736886892730,3.60993519,3217.6,3217.5,0.31096]
[1736886893119,0.31096,3217.6,3217.5,0.31096]
[1736886893324,3.67654524,3217.6,3217.5,0.31096]
[1736886893627,3.67654524,3217.6,3217.4,3.51877]
[1736886893826,0.4793,3217.5,3217.4,3.51877]
[1736886894128,4.3339145,3217.5,3217.4,3.2078]
[1736886894330,4.0229445,3217.5,3217.4,3.51878]
[1736886900722,4.3339145,3217.5,3217.4,3.2078]
[1736886901432,4.0229445,3217.5,3217.4,3.51878]
[1736886901629,0.959,3217.9,3217.8,0.31094]
[1736886901932,2.45151459,3219.6,3218.0,0.77729]
[1736886902135,0.9691,3219.0,3218.9,0.31083]
[1736886902329,4.2118345,3219.0,3218.7,2.45151459]
[1736886902627,4.2118345,3219.0,3218.6,3.2078]
[1736886902628,0.9691,3219.0,3218.6,3.51866]
[1736886902831,0.9691,3219.0,3218.3,0.31088]
[1736886902832,0.31087,3218.5,3218.3,0.31088]
[1736886903222,3.5133204,3218.4,3218.3,0.31088]
[1736886903422,3.8242004,3218.4,3218.2,44.31869]
[1736886903623,0.9643,3218.3,3218.2,44.31869]
[1736886905535,0.31087,3218.6,3218.4,0.31088]
[1736886905729,0.31087,3218.5,3218.3,0.31088]
[1736886905937,0.31088,3218.4,3218.3,0.31088]
[1736886906237,0.31086,3218.6,3218.2,44.0078]
[1736886906438,3.2078,3218.8,3218.5,0.31087]
[1736886906734,2.93624812,3218.5,3218.4,0.31087]
[1736886906936,3.89049906,3218.6,3218.3,0.31089]
[1736886907141,0.31088,3218.5,3218.3,0.31089]
[1736886907333,3.82546155,3218.5,3218.3,0.31089]
[1736886907537,0.31088,3218.5,3218.3,0.31089]
[1736886907839,3.97698155,3218.4,3218.3,0.31089]
[1736886908134,10.93629614,3218.4,3217.3,3.2078]
[1736886908333,0.77733,3217.9,3217.3,3.2078]
[1736886908635,0.31097,3217.5,3217.4,0.31098]
[1736886908841,0.31097,3217.5,3217.3,3.2078]
[1736886908842,0.31098,3217.4,3217.3,3.2078]
[1736886909032,1.22518,3217.4,3217.3,3.2078]
[1736886909227,4.6824588,3217.4,3217.3,3.2078]
[1736886909742,4.6824588,3217.4,3216.8,43.74221459]
[1736886909743,4.3714788,3217.4,3216.8,46.95001459]
[1736886910041,3.7682588,3217.4,3217.2,0.31099]
[1736886910241,3.4572788,3217.4,3217.3,0.31099]
[1736886910627,3.30649653,3217.7,3217.6,0.31095]
[1736886910836,1.22624,3217.8,3217.6,0.31095]
[1736886911128,3.25987019,3217.7,3217.1,2.45151459]
[1736886911440,0.31102,3217.0,3216.8,3.51883]
[1736886911633,0.31102,3216.9,3216.8,3.2078]
[1736886911834,0.31108,3216.4,3216.1,3.2078]
[1736886912029,0.9643,3216.8,3216.2,40.8]
[1736886912229,0.9643,3216.8,3216.3,0.31108]
[1736886912230,0.31107,3216.5,3216.3,0.31108]
[1736886912635,4.4539952,3216.8,3216.2,40.8]
[1736886912937,0.31105,3216.6,3216.4,0.31107]
[1736886913131,4.4539952,3216.8,3216.2,40.8]
[1736886913335,4.4539952,3216.8,3216.2,43.25151459]
[1736886913537,4.4539952,3216.8,3216.5,3.2078]
[1736886913932,4.7650252,3216.8,3216.6,0.31105]
[1736886914132,4.4539952,3216.8,3216.5,3.51886]
[1736886914342,4.7650352,3216.8,3216.6,0.31105]
[1736886914539,0.31105,3216.7,3216.5,3.51886]
[1736886914942,3.5416659,3216.6,3216.5,3.51886]
[1736886915140,3.8527159,3216.6,3216.5,3.2078]
[1736886915338,3.5416659,3216.6,3216.2,40.8]
[1736886915641,0.31108,3216.3,3216.2,40.8]
[1736886915843,6.43695459,3216.6,3216.1,3.2078]
[1736886916037,0.31109,3216.2,3216.1,3.2078]
[1736886916234,0.31109,3216.2,3216.1,2.4579]
[1736886916436,0.3111,3216.1,3216.0,0.002]
[1736886916643,0.7807,3216.1,3216.0,0.002]
[1736886916936,4.24983772,3216.1,3216.0,0.002]
[1736886917839,10.23873772,3216.1,3215.1,3.2078]
[1736886918043,2.45151459,3215.5,3215.1,3.2078]
[1736886918249,2.45151459,3215.5,3214.6,3.2078]
[1736886918442,0.31119,3215.2,3215.0,0.31121]
[1736886918642,0.31119,3215.2,3214.7,40.8]
[1736886918837,3.68518033,3215.1,3214.7,41.11123]
[1736886919039,3.37398033,3215.1,3214.7,40.8]
[1736886919343,0.31122,3215.0,3214.7,40.8]
[1736886919744,3.26098807,3214.9,3214.7,40.8]
[1736886919940,3.26098807,3214.9,3214.7,41.11123]
[1736886920350,3.26098807,3214.9,3214.7,40.8]
[1736886920557,3.57354269,3215.1,3214.7,40.8]
[1736886920849,3.57354269,3214.9,3214.7,41.11124]
[1736886921244,0.31121,3215.0,3214.7,41.11124]
[1736886921453,3.39444724,3214.9,3214.7,41.11124]
[1736886922747,3.39444724,3214.9,3214.7,40.8]
[1736886922946,3.39444724,3214.9,3214.8,0.31123]
[1736886923148,3.67744632,3215.1,3214.8,0.31123]
[1736886923349,3.36624632,3215.0,3214.7,40.8]
[1736886923544,3.67745632,3215.0,3214.7,41.11123]
[1736886923739,0.31121,3215.0,3214.8,0.31123]
[1736886923946,3.36624632,3214.9,3214.7,40.8]
[1736886924248,0.9308,3215.2,3214.6,2.45151459]
[1736886924448,1.24199,3215.2,3214.9,0.31121]
[1736886924650,3.26700828,3215.1,3215.0,40.8]
[1736886925347,3.26700828,3215.1,3215.0,41.11121]
[1736886925554,3.57820828,3215.1,3215.0,40.8]
[1736886925956,3.26700828,3215.1,3215.0,41.11121]
[1736886927056,3.52762029,3215.2,3215.1,0.31119]
[1736886927250,0.4668,3215.6,3215.4,0.31116]
[1736886927450,3.25800545,3215.5,3215.4,0.31116]
[1736886927754,0.77796,3215.6,3215.3,0.31117]
[1736886927955,3.56916545,3215.5,3215.3,0.31117]
[1736886928449,3.25800545,3215.5,3215.4,0.31117]
[1736886928952,0.31115,3215.6,3215.4,0.31117]
[1736886929255,0.9219,3216.0,3215.2,2.45151459]
[1736886929456,0.31113,3215.8,3215.6,0.31115]
[1736886929757,3.82154561,3215.8,3215.6,0.31115]
[1736886929949,0.31113,3215.8,3215.5,0.31115]
[1736886930150,3.58229679,3215.7,3215.5,0.31115]
[1736886930348,0.4804,3216.2,3215.6,3.51895]
[1736886930551,3.2078,3216.4,3216.3,0.31108]
[1736886930850,0.31104,3216.7,3216.5,0.31105]
[1736886931054,0.31104,3216.7,3216.2,2.45151459]
[1736886931055,1.3837,3216.8,3216.4,3.2078]
[1736886931354,0.01306,3216.9,3216.8,0.31103]
[1736886931565,0.01306,3216.9,3216.8,41.11103]
[1736886931855,0.01306,3216.9,3216.8,43.56254459]
[1736886932953,0.01306,3216.9,3216.8,46.77034459]
[1736886935952,0.01306,3216.9,3216.8,5.97034459]
[1736886937959,0.01306,3216.9,3216.8,3.2078]
[1736886938160,0.01306,3216.9,3216.8,3.51883]
[1736886939259,0.01306,3216.9,3216.8,3.2078]
[1736886939954,0.32408,3216.9,3216.8,3.2078]
[1736886940153,0.31104,3216.8,3216.2,5.65931459]
[1736886940358,0.31104,3216.8,3216.5,0.31106]
[1736886941252,0.32409,3216.9,3216.6,0.31105]
[1736886941564,0.31104,3216.8,3216.6,0.31105]
[1736886942253,0.31104,3216.8,3216.5,0.31106]
[1736886942461,0.32409,3216.9,3216.7,0.31104]
[1736886942961,0.32409,3216.9,3216.3,40.8]
[1736886943161,0.01306,3216.9,3216.6,0.31105]
[1736886943354,0.31104,3216.8,3216.6,0.31105]
[1736886943868,1.4246,3217.2,3216.3,40.8]
[1736886944159,0.31103,3216.8,3216.6,0.31105]
[1736886944360,3.59921449,3217.1,3216.3,40.8]
[1736886944666,0.31103,3216.9,3216.6,0.31105]
[1736886944855,0.31103,3216.9,3216.7,0.31104]
[1736886945050,0.31103,3216.9,3216.3,40.8]
[1736886945051,3.59921449,3217.1,3217.0,0.31101]
[1736886945259,1.7356,3217.2,3217.0,0.31101]
[1736886945461,1.4246,3217.2,3216.6,3.2078]
[1736886945664,0.31102,3217.0,3216.8,0.31103]
[1736886945957,1.4246,3217.2,3216.6,3.2078]
[1736886946158,3.91017928,3216.9,3216.7,0.31104]
[1736886946354,0.31103,3216.9,3216.7,0.31104]
[1736886946554,0.31103,3216.9,3216.8,40.8]
[1736886946757,0.31102,3217.0,3216.8,40.8]
[1736886946960,1.4246,3217.2,3216.8,40.8]
[1736886946961,1.4246,3217.2,3217.1,0.311]
[1736886947155,5.65931459,3218.1,3217.1,2.45151459]
[1736886947468,4.54176278,3217.9,3217.3,0.77745]
[1736886947660,4.85269278,3217.9,3217.7,0.31094]
[1736886947959,3.90580278,3217.8,3217.6,0.31095]
[1736886948757,0.31095,3217.7,3217.6,0.31095]
[1736886949064,3.90580278,3217.8,3217.5,0.31097]
[1736886949265,3.90580278,3217.8,3217.6,0.31095]
[1736886949665,0.31095,3217.7,3217.6,0.31095]
[1736886950166,3.59486278,3217.8,3217.4,3.2078]
[1736886950363,0.9469,3217.9,3216.9,1.75876]
[1736886950364,3.60341212,3217.7,3217.3,3.2078]
[1736886950666,0.31097,3217.5,3217.4,0.31097]
[1736886951364,0.9469,3217.9,3217.3,3.2078]
[1736886951563,0.31096,3217.6,3217.4,0.31097]
[1736886951965,3.32845249,3217.5,3217.4,0.31097]
[1736886952468,0.31096,3217.7,3217.5,0.31096]
[1736886952671,0.9469,3217.9,3217.3,3.51878]
[1736886952959,0.31098,3217.4,3217.3,3.2078]
[1736886953165,0.31098,3217.4,3217.3,3.51879]
[1736886953667,0.4722,3217.5,3217.3,3.51879]
[1736886953668,0.78317,3217.5,3217.3,3.51879]
[1736886953856,0.78317,3217.5,3216.8,43.25151459]
[1736886953857,0.4722,3217.5,3216.8,46.45931459]
[1736886954167,3.44091873,3217.4,3216.8,44.0078]
[1736886954353,0.31101,3217.1,3216.8,44.0078]
[1736886954559,3.44091873,3217.4,3217.2,0.31099]
[1736886954766,3.75189873,3217.4,3217.2,0.31099]
[1736886955067,3.44091873,3217.4,3217.0,0.31101]
[1736886955267,0.311,3217.2,3217.0,0.31101]
[1736886956760,0.31099,3217.3,3217.0,0.31101]
[1736886956961,0.468,3217.2,3217.0,0.31101]
[1736886957157,0.468,3217.2,3216.8,46.45931459]
[1736886957366,0.468,3217.2,3217.1,0.311]
[1736886957565,0.4722,3217.5,3217.1,2.45151459]
[1736886957763,0.4722,3217.5,3217.4,0.31098]
[1736886958367,0.4722,3217.5,3217.4,41.11098]
[1736886959369,0.77894,3217.8,3217.6,0.31095]
[1736886959565,0.31095,3217.7,3217.5,0.31096]
[1736886959870,0.31095,3217.7,3217.6,0.31096]
[1736886959871,3.7837406,3217.7,3217.6,0.31096]
[1736886960368,0.31096,3217.6,3217.4,41.11097]
[1736886960665,6.95831459,3217.7,3216.6,3.2078]
[1736886960863,6.95831459,3217.7,3215.5,2.16493382]
[1736886960864,0.77749,3217.2,3216.2,3.2078]
[1736886961168,0.31107,3216.4,3216.2,3.2078]
[1736886961363,0.31108,3216.3,3216.2,3.2078]
[1736886961563,0.31109,3216.2,3216.1,40.8]
[1736886961968,3.59502763,3216.2,3216.1,40.8]
[1736886962367,3.28393763,3216.2,3216.1,41.1111]
[1736886962562,3.2078,3216.9,3216.1,41.1111]
[1736886962563,3.2078,3216.9,3216.2,0.31109]
[1736886962763,0.31106,3216.6,3216.4,0.31107]
[1736886962961,3.83111634,3216.6,3216.4,0.31107]
[1736886963165,0.31106,3216.6,3216.4,0.31107]
[1736886963468,3.46835894,3216.5,3216.4,0.31107]
[1736886963666,3.46835894,3216.5,3216.2,3.2078]
[1736886964174,0.4669,3216.4,3216.2,3.2078]
[1736886964374,3.46835894,3216.5,3216.4,0.31107]
[1736886964574,0.4961,3216.7,3216.2,3.2078]
[1736886964776,0.31107,3216.5,3216.3,0.31108]
[1736886964971,0.4961,3216.7,3216.2,3.2078]
[1736886965176,0.31108,3216.3,3216.2,3.2078]
[1736886965372,0.31109,3216.2,3216.1,40.8]
[1736886966490,0.31116,3215.5,3215.4,3.2078]
[1736886966975,3.58971582,3215.5,3215.4,44.0078]
[1736886971696,3.27855582,3215.5,3215.4,44.31897]
[1736886971890,3.51893,3215.9,3215.7,0.31113]
[1736886972187,3.2078,3215.9,3215.8,0.31113]
[1736886972382,0.31112,3216.0,3215.8,0.31113]
[1736886972587,1.7579,3216.1,3216.0,0.31111]
[1736886972778,1.7579,3216.1,3216.0,3.51891]
[1736886972779,0.9687,3216.1,3216.0,3.51891]
[1736886972985,0.4748,3216.6,3216.5,0.31106]
[1736886975085,0.31104,3216.8,3216.4,3.2078]
[1736886975385,0.4668,3217.0,3216.9,0.31102]
[1736886975890,0.31098,3217.4,3217.3,0.31098]
[1736886976089,0.4635,3217.5,3217.4,0.31098]
[1736886976290,3.2078,3218.0,3217.3,3.2078]
[1736886976593,3.57987862,3217.7,3217.3,3.2078]
[1736886976793,3.57987862,3217.7,3217.4,0.31098]
[1736886976993,0.31096,3217.6,3217.5,0.31097]
[1736886977193,0.31096,3217.6,3217.3,3.2078]
[1736886977194,3.59171829,3217.6,3217.3,3.2078]
[1736886977393,0.31097,3217.5,3217.4,0.31097]
[1736886977894,3.2078,3217.9,3217.3,3.2078]
[1736886978089,0.31095,3217.7,3217.4,0.31098]
[1736886978286,3.76268587,3217.8,3217.7,0.31094]
[1736886978587,0.31095,3217.7,3217.6,0.31095]
[1736886978791,3.45173587,3217.8,3217.4,40.8]
[1736886979093,0.31097,3217.6,3217.5,0.31096]
[1736886979294,3.45173587,3217.8,3217.4,40.8]
[1736886979596,0.31095,3217.7,3217.6,0.31095]
[1736886979992,0.31096,3217.6,3217.5,0.31096]
[1736886981588,0.31095,3217.7,3217.6,0.31095]
[1736886982288,3.45173587,3217.8,3217.3,3.2078]
[1736886982591,0.31092,3217.7,3217.6,0.31092]
[1736886982896,3.45173587,3217.8,3217.3,3.2078]
[1736886983196,0.31094,3217.5,3217.4,0.31094]
[1736886983694,3.45173587,3217.8,3217.7,0.31092]
[1736886983895,0.9352,3218.1,3217.7,2.45151459]
[1736886984388,0.9352,3218.1,3217.8,0.31091]
[1736886984591,0.31089,3218.0,3217.7,5.65931459]
[1736886984796,0.31089,3218.0,3217.8,0.3109]
[1736886984991,0.4717,3218.1,3217.7,5.97022459]
[1736886984992,0.3109,3217.9,3217.7,5.97022459]
[1736886985392,0.3109,3217.9,3217.7,3.51871]
[1736886985991,0.3109,3217.9,3217.7,3.2078]
[1736886986292,0.31089,3218.0,3217.7,3.51871]
[1736886986488,0.31088,3218.1,3217.8,0.3109]
[1736886986890,0.31089,3218.0,3217.8,0.3109]
[1736886987393,3.4893506,3218.2,3217.8,5.0]
[1736886987696,0.78409,3219.1,3218.1,6.43651459]
[1736886987992,3.9626506,3219.1,3218.6,0.31082]
[1736886988188,0.3108,3218.9,3218.6,0.31082]
[1736886988387,0.31079,3219.0,3218.6,0.31082]
[1736886988596,0.31079,3219.0,3218.7,0.31081]
[1736886988796,3.9626506,3219.1,3218.8,0.31081]
[1736886988994,0.7768,3219.8,3218.8,0.31081]
[1736886988995,3.2078,3220.1,3219.0,2.76230459]
[1736886989191,1.17789427,3220.2,3219.5,3.2078]
[1736886989395,3.25987785,3220.0,3219.8,0.31071]
[1736886989596,3.25987785,3220.0,3219.7,0.31072]
[1736886989597,0.3107,3220.0,3219.7,0.31072]
[1736886989905,0.9295,3220.2,3219.7,0.31072]
[1736886990197,0.3107,3220.0,3219.6,40.8]
[1736886990398,3.41684578,3220.1,3219.8,0.31071]
[1736886990600,0.31071,3219.9,3219.7,0.31072]
[1736886990795,0.31071,3219.9,3219.6,40.8]
[1736886991101,3.41684578,3220.1,3219.6,41.11073]
[1736886991290,0.31072,3219.8,3219.6,40.8]
[1736886991490,0.31071,3219.9,3219.6,41.11072]
[1736886991696,3.41684578,3220.1,3219.6,41.11072]
[1736886991996,3.41684578,3220.1,3219.6,40.8]
[1736886992192,3.41684578,3220.1,3219.5,3.2078]
[1736886992598,0.31072,3219.8,3219.6,0.31073]
[1736886992792,3.72753578,3220.1,3219.9,0.3107]
[1736886992991,3.72753578,3220.1,3219.9,3.5185]
[1736886993301,0.31069,3220.0,3219.9,3.2078]
[1736886996396,3.41684578,3220.1,3219.9,3.2078]
[1736886996704,3.41684578,3220.1,3220.0,0.31069]
[1736886997803,0.31068,3220.2,3220.0,0.31068]
[1736886997999,1.24126,3220.8,3219.9,5.65931459]
[1736886998194,3.2668529,3220.5,3219.9,5.65931459]
[1736886998401,0.31068,3220.1,3220.0,0.31069]
[1736886998702,0.31069,3220.1,3220.0,0.31069]
[1736886999502,3.2668529,3220.5,3219.9,5.65931459]
[1736886999699,0.31067,3220.3,3220.0,0.31069]
[1736887000000,3.2476419,3220.7,3219.9,5.65931459]
[1736887000202,0.31068,3220.2,3220.0,0.31069]
[1736887000397,3.45713846,3220.7,3219.9,5.65931459]
[1736887000602,0.7766,3220.7,3219.9,5.65931459]
[1736887000806,0.31069,3220.1,3220.0,0.31069]
[1736887001502,0.7766,3220.7,3219.9,5.65931459]
[1736887001503,0.77662,3220.5,3219.9,5.65931459]
[1736887001704,0.77662,3220.5,3220.0,0.31069]
[1736887001899,3.32998414,3220.5,3220.3,3.2078]
[1736887002206,0.4647,3220.8,3220.5,0.31064]
[1736887002399,0.31065,3220.5,3220.3,3.51846]
[1736887002706,0.31065,3220.5,3220.4,40.8]
[1736887002908,0.31064,3220.6,3220.4,40.8]
[1736887003201,0.31065,3220.5,3220.4,41.11065]
[1736887003506,0.31065,3220.5,3220.4,40.8]
[1736887004705,0.31066,3220.4,3220.3,3.2078]
[1736887005602,0.31065,3220.5,3220.3,3.2078]
[1736887005803,0.4647,3220.8,3220.7,0.31063]
[1736887005998,0.002,3221.0,3220.7,5.65931459]
[1736887006198,0.31062,3220.8,3220.7,5.65931459]
[1736887006403,0.31062,3220.8,3220.7,3.2078]
[1736887007313,0.31064,3220.6,3220.4,2.76216459]
[1736887007611,0.31066,3220.4,3220.3,3.2078]
[1736887007909,0.31066,3220.4,3220.3,3.51846]
[1736887008101,0.31065,3220.5,3220.3,3.51846]
[1736887008303,0.31066,3220.4,3220.3,3.51846]
[1736887008611,0.31066,3220.4,3220.3,3.2078]
[1736887010208,0.3107,3219.9,3219.8,40.8]
[1736887010602,3.60647118,3219.9,3219.8,40.8]
[1736887012206,3.60647118,3219.9,3219.2,0.4661]
[1736887012207,3.29577118,3219.9,3218.9,2.45151459]
[1736887012407,3.29577118,3219.9,3218.7,5.65931459]
[1736887012408,0.31079,3219.1,3218.7,5.65931459]
[1736887012706,0.31075,3219.5,3219.3,0.31076]
[1736887012904,4.6306,3219.8,3219.1,3.2078]
[1736887013111,4.6306,3219.8,3219.2,0.31077]
[1736887013112,0.31076,3219.4,3219.2,0.31077]
[1736887013303,3.80603322,3219.7,3219.2,0.31077]
[1736887013498,4.6306,3219.8,3219.1,3.2078]
[1736887013706,3.51000405,3219.4,3219.1,3.2078]
[1736887013898,3.51000405,3219.6,3219.1,3.2078]
[1736887014107,0.31076,3219.4,3219.2,0.31077]
[1736887014318,3.82076405,3219.4,3219.2,0.31077]
[1736887014511,0.31076,3219.4,3219.2,0.31077]
[1736887014711,4.6306,3219.8,3219.1,3.2078]
[1736887015010,0.31077,3219.3,3219.1,3.51857]
[1736887015912,0.31076,3219.4,3219.2,0.31077]
[1736887016108,4.6306,3219.8,3219.3,0.31075]
[1736887016303,0.31075,3219.4,3219.2,0.31077]
[1736887016505,0.31075,3219.5,3219.1,5.65931459]
[1736887016713,0.31075,3219.5,3219.3,0.31076]
[1736887016913,3.8199207,3219.4,3219.2,0.31077]
[1736887017120,0.31076,3219.3,3219.1,5.97009459]
[1736887017415,0.31076,3219.4,3219.2,0.31077]
[1736887017911,0.31075,3219.5,3219.3,0.31076]
[1736887018108,4.6306,3219.8,3219.1,5.65931459]
[1736887018303,3.59869775,3219.4,3219.2,0.31077]
[1736887018506,2.45151459,3219.7,3219.1,3.2078]
[1736887018709,0.31081,3218.9,3218.6,4.00172]
[1736887019111,0.77691,3219.3,3218.7,41.11081]
[1736887019308,0.31081,3218.9,3218.7,41.11081]
[1736887019505,0.31081,3218.8,3218.7,40.8]
[1736887019712,3.9137123,3218.8,3218.7,40.8]
[1736887019914,0.31081,3218.8,3218.7,40.8]
[1736887020107,3.9137123,3218.8,3218.7,40.8]
[1736887021018,0.31087,3218.2,3217.9,3.2078]
[1736887021210,0.31087,3218.2,3217.9,3.51869]
[1736887021409,0.31087,3218.2,3217.7,0.4635]
[1736887021410,0.31091,3217.8,3217.5,5.97024459]
[1736887021718,0.31089,3218.0,3217.7,0.31091]
[1736887021915,3.76592956,3218.1,3217.5,5.65931459]
[1736887022110,3.28692956,3217.9,3217.5,5.65931459]
[1736887022311,3.59597091,3218.0,3217.8,0.3109]
[1736887022710,0.3109,3217.9,3217.6,0.31092]
[1736887022907,0.31092,3217.7,3217.4,0.31094]
[1736887023107,0.31092,3217.7,3217.2,2.45151459]
[1736887023108,0.31094,3217.5,3217.2,0.31096]
[1736887023315,3.59597091,3217.6,3217.4,0.31094]
[1736887023709,0.31093,3217.6,3217.3,0.31095]
[1736887023910,0.31092,3217.7,3217.4,0.31094]
[1736887024217,3.30554609,3217.7,3217.4,0.31094]
[1736887024417,3.61646609,3217.7,3217.4,0.31094]
[1736887024614,3.30554609,3217.7,3217.2,2.45151459]
[1736887024816,0.479,3218.1,3217.9,0.31089]
[1736887025119,0.31082,3218.7,3218.4,0.31084]
[1736887025517,3.44111751,3218.5,3218.4,0.31084]
[1736887025713,3.75193751,3218.7,3218.4,41.11084]
[1736887026017,3.75192751,3218.8,3218.5,0.31084]
[1736887026206,3.44111751,3218.6,3218.4,41.11084]
[1736887026410,0.31082,3218.7,3218.4,41.11084]
[1736887026610,3.28481438,3218.7,3218.5,0.31083]
[1736887026811,0.4514,3218.9,3218.6,2.45151459]
[1736887027007,0.4514,3218.9,3218.7,0.31082]
[1736887027219,0.4514,3218.9,3218.6,2.45151459]
[1736887027417,0.31082,3218.7,3218.4,41.11084]
[1736887027617,0.4514,3218.9,3218.4,40.8]
[1736887028320,0.76221,3218.9,3218.6,0.31082]
[1736887028522,0.4514,3218.9,3218.7,0.31081]
[1736887028817,0.31083,3218.6,3218.4,40.8]
[1736887029120,0.31084,3218.5,3218.4,40.8]
[1736887029534,3.38656583,3218.8,3218.4,40.8]
[1736887029722,3.38656583,3218.8,3218.7,0.31082]
[1736887030530,0.4514,3218.9,3218.5,2.96758811]
[1736887030723,0.4514,3218.9,3218.8,0.31081]
[1736887032032,0.4514,3218.9,3218.5,2.96758811]
[1736887032534,0.7683,3219.0,3218.8,0.31081]
[1736887033035,0.4663,3219.4,3218.7,3.2078]
[1736887033230,0.77706,3219.4,3219.1,0.31077]
[1736887033434,3.27708128,3219.3,3219.1,0.31077]
[1736887033626,3.27708128,3219.3,3218.8,3.46648811]
[1736887033828,3.51854,3219.5,3219.3,0.31076]
[1736887034024,0.31074,3219.6,3218.9,0.77701]
[1736887034231,0.947,3219.7,3219.2,0.31076]
[1736887034232,0.31074,3219.5,3219.2,0.31076]
[1736887034432,3.58453205,3219.6,3219.3,0.31075]
[1736887034737,3.27379205,3219.6,3219.5,0.31074]
[1736887035043,3.27379205,3219.6,3219.4,0.31075]
[1736887035537,0.31075,3219.5,3219.2,0.31076]
[1736887035722,0.31076,3219.4,3219.1,3.51858]
[1736887035926,3.27379205,3219.6,3219.1,3.51858]
[1736887035927,0.31077,3219.3,3219.1,3.2078]
[1736887036334,0.31075,3219.4,3219.1,3.51857]
[1736887036532,3.27379205,3219.6,3219.2,0.31076]
[1736887036829,0.31075,3219.4,3219.2,0.31076]
[1736887037029,3.27379205,3219.6,3219.1,3.2078]
[1736887037230,3.58452205,3219.6,3219.4,0.31075]
[1736887037432,0.31076,3219.3,3219.1,3.51857]
[1736887037634,0.31076,3219.4,3219.1,3.51857]
[1736887038034,0.31076,3219.3,3219.1,3.2078]
[1736887038232,0.31077,3219.2,3219.1,3.2078]
[1736887038431,0.31077,3219.3,3219.1,3.2078]
[1736887038637,0.31077,3219.2,3219.1,3.2078]
[1736887038837,3.5224175,3219.2,3218.9,0.3108]
[1736887039038,0.31079,3219.1,3218.8,0.4989]
[1736887039243,0.31078,3219.2,3218.9,0.31079]
[1736887039537,3.46567294,3219.4,3218.5,6.17538811]
[1736887039737,3.46567294,3219.1,3218.5,6.17538811]
[1736887040041,3.46567294,3219.1,3218.9,0.3108]
[1736887040042,0.31079,3219.1,3218.9,0.3108]
[1736887040242,0.3108,3219.0,3218.8,0.3108]
[1736887040541,3.39715024,3219.0,3218.9,0.3108]
[1736887040741,0.31077,3219.2,3219.0,0.31078]
[1736887041129,0.31077,3219.3,3219.1,0.31078]
[1736887041536,3.38457407,3219.4,3219.3,0.31076]
[1736887041735,3.38457407,3219.4,3218.9,3.2078]
[1736887041736,3.69533407,3219.4,3219.2,0.31077]
[1736887041937,0.31076,3219.3,3218.9,3.2078]
[1736887042137,3.38457407,3219.4,3218.9,3.2078]
[1736887042340,0.31079,3219.1,3218.9,0.3108]
[1736887042541,3.38461377,3219.2,3218.5,6.17538811]
[1736887042752,0.31079,3219.1,3218.5,6.17538811]
[1736887043047,3.38461377,3219.1,3218.6,1.08789]
[1736887043237,0.31077,3219.2,3219.0,0.31079]
[1736887043540,0.31077,3219.2,3219.1,0.31078]
[1736887043541,3.36547165,3219.2,3219.1,0.31078]
[1736887043942,3.2078,3219.5,3219.4,0.31075]
[1736887044146,3.2078,3219.5,3219.0,0.77698]
[1736887044147,0.31073,3219.6,3219.0,1.27318]
[1736887044336,0.31073,3219.6,3219.4,0.31075]
[1736887044536,3.70147048,3219.6,3219.4,0.31075]
[1736887044737,3.70147048,3219.6,3219.5,40.8]
[1736887047049,0.31076,3219.3,3219.2,0.31077]
[1736887047542,0.4941,3219.5,3219.1,0.4718]
[1736887047744,0.4941,3219.5,3219.2,0.31076]
[1736887047745,0.31076,3219.4,3219.2,0.31076]
[1736887049253,0.31076,3219.4,3219.1,0.4718]
[1736887049444,0.31076,3219.4,3219.3,0.31076]
[1736887050345,0.31073,3219.7,3219.2,0.77692]
[1736887050549,0.31073,3219.7,3219.6,0.31073]
[1736887050745,0.4663,3219.8,3219.7,0.31072]